Cogmind - Beta 16 --- EXPLORER MODE // 2025.12.11 @ 16:56:28 Player: K.K.Y. Result: Destroyed self with Subdweller Power Source chain reaction Performance ------------- Evolutions (0) 0 Regions Visited (3) 600 Robots Destroyed (48) 240 Value Destroyed (909) 909 Prototype IDs (15) 300 Alien Tech Used (0) 0 Bonus (240) 240 TOTAL SCORE: 2289 Bonus ------- Follower Combat Kills 240 Cogmind --------- Core Integrity 0/250 Matter 300/300 Energy 127/180 System Corruption 1% Temperature Cool (15) Movement Hovering (60) Location -10/Subcaves Parts ------- > --- POWER (1) -------- Meta Core > --- PROPULSION (3+1) - Airjet > --- UTILITY (2+1) ---- Weight Redist. System Structural Scanner Improved Sensor Array (+) > --- WEAPON (2+1) ----- Beamcaster > --- INVENTORY (5) ---- Machine Analyzer Experimental Sensor Array System Shield Peak State ------------ > --- POWER ------------ Meta Core > --- PROPULSION ------- Airjet > --- UTILITY ---------- Weight Redist. System Structural Scanner Improved Sensor Array > --- WEAPON ----------- Improved EM Shotgun Beamcaster > --- INVENTORY -------- Machine Analyzer Experimental Sensor Array System Shield [Rating: 31] Favorites ----------- Power Light Ion Engine Engine Light Ion Engine Power Core Meta Core Propulsion Flight Unit Wheel Wheel Hover Unit Airjet Flight Unit Flight Unit Utility Structural Scanner Device Structural Scanner Processor Targeting Computer Weapon Improved EM Shotgun Energy Gun Improved EM Shotgun Special Weapon Mining Laser Build | -11 -10 -10 -10 ------- Run | Yrd Mat Min Sub Slots Evolved 1 | . 1 . . Power . | . . . . Propulsion 1 | . 1 . . Utility . | . . . . Weapon . | . . . . Parts Attached 22 | 4 10 4 4 Power 4 | 1 1 1 1 Engine 3 | 1 1 1 . Core 1 | . . . 1 Reactor . | . . . . Propulsion 7 | . 5 2 . Treads . | . . . . Leg . | . . . . Wheel 3 | . 3 . . Hover 1 | . . 1 . Flight 3 | . 2 1 . Utility 4 | 1 2 . 1 Device 3 | . 2 . 1 Storage . | . . . . Processor 1 | 1 . . . Hackware . | . . . . Protection . | . . . . Artifact . | . . . . Weapon 7 | 2 2 1 2 Energy Gun 6 | 2 2 1 1 Energy Cannon . | . . . . Ballistic Gun . | . . . . Ballistic Cannon . | . . . . Launcher . | . . . . Special Weapon 1 | . . . 1 Impact Weapon . | . . . . Slashing Weapon . | . . . . Piercing Weapon . | . . . . Special Melee Weapon . | . . . . Unidentified Prototypes 1 | . 1 . . Parts Lost 5 | . . . 5 Power 1 | . . . 1 Propulsion 2 | . . . 2 Utility . | . . . . Weapon 2 | . . . 2 Highest Loss Streak 2 | . . . 2 To Critical Strikes . | . . . . Average Backups 3 | . 3 4 4 Power . | . . . . Propulsion . | . . . . Utility 2 | . 1 2 3 Weapon . | . 1 2 . Tool/Special . | . . . . Unused Backups 7 | . 1 3 3 Power . | . . . . Propulsion . | . . . . Utility 6 | . 1 2 3 Weapon 1 | . . 1 . Tool/Special . | . . . . Average Slot Usage (%) 72 | . 87 92 64 Engine 5 | . 12 12 1 Core 2 | . . . 3 Wheel 3 | . 13 . . Hover 7 | . . 4 10 Flight 9 | . 12 26 5 Device 22 | . 14 25 24 Processor 2 | . 8 . . Energy Gun 19 | . 24 25 17 Peak Build Rating 31 | 4 13 16 31 Average Rating 16 | 3 9 14 20 On Entrance 8 | . 4 13 16 Avg Prop Armor Cover (%) 9 | . . 6 10 Naked Turns . | . . . . Heaviest Build 16 | 5 10 12 16 Greatest Support 30 | 3 30 18 14 Greatest Overweight (x) 2 | 1 1 . 2 Average Overweight (x) . | . . . . Largest Inventory Capacity 5 | 5 5 5 5 Average Capacity 5 | 5 5 5 5 Most Carried 5 | 4 5 5 5 Average Carried 4 | . 3 4 4 Final Capacity 5 | 5 5 5 5 Final Carried 5 | 2 5 5 3 Class Distribution -------------------- 85% | Hacker-Mutant 14% | Scavenger-Mutant Dominant Class ---------------- Hacker-Mutant | -10/Materials Scavenger-Mutant | -10/Mines Hacker-Mutant | -10/Subcaves Resources | -11 -10 -10 -10 ----------- Run | Yrd Mat Min Sub Matter Collected 471 | 240 100 47 84 Remotely . | . . . . Salvage Created 1660 | 107 967 86 500 Parts 103 | 9 61 3 30 Haulers Intercepted 2 | . 2 . . Recyclers Shooed 1 | . 1 . . Parts Field Recycled . | . . . . Retrieved Matter . | . . . . Parts Self-Destructed . | . . . . Prevented . | . . . . Parts Restored . | . . . . Kills | -11 -10 -10 -10 ------- Run | Yrd Mat Min Sub Combat Hostiles Destroyed 27 | . 12 3 12 Guns 24 | . 11 2 11 AOE 3 | . 1 1 1 Classes Destroyed 11 | 2 7 . 2 Worker 4 | . 4 . . Builder 5 | . 5 . . Tunneler 3 | 2 1 . . Hauler 2 | . 2 . . Recycler 2 | 1 1 . . Mechanic 1 | . 1 . . Turret 1 | . . . 1 Watcher 3 | . 3 . . Swarmer 10 | . 4 2 4 Grunt 9 | . 8 1 . Subdweller 8 | . . . 8 Best Kill Streak 7 | 3 7 2 5 Combat Bots Only 4 | . 3 2 4 Max Kills in Single Turn 2 | 1 2 1 2 Gunslinging 1 | . . . 1 Exploded 1 | . 1 1 1 Melee . | . . . . Uniques/NPCs Destroyed . | . . . . Combat | -11 -10 -10 -10 -------- Run | Yrd Mat Min Sub Hostile Shots Fired 121 | . 36 6 79 Missed 55 | . 14 5 36 Hits 66 | . 22 1 43 Projectile 66 | . 22 1 43 Critical Strikes 2 | . . . 2 Damage Taken 660 | . 131 3 526 Core 253 | . 46 . 207 Absorbed by Shields . | . . . . Ignored by Resistances 427 | . 91 3 333 Core Remaining (%) 100 | 100 . . . Volleys Fired 113 | 4 41 4 64 Largest 2 | 2 2 2 2 Hottest 120 | 80 90 90 120 Shots Fired 182 | 8 82 8 84 Gun 179 | 8 82 8 81 Cannon . | . . . . Launcher . | . . . . Special 3 | . . . 3 Kinetic . | . . . . Thermal 91 | 8 58 . 25 Explosive . | . . . . Electromagnetic 91 | . 24 8 59 Robot Hit Streak 26 | 6 26 11 26 Robot Miss Streak 2 | . 1 2 2 Penetration Max . | . . . . Secondary Targets 4 | . 3 . 1 Max Gunslinging Chain 1 | . 1 . 1 Shots Hit Robots 133 | 6 69 5 53 Core Hits 77 | 4 43 4 26 Critical Kills . | . . . . Critical Parts Destroyed . | . . . . Critical Strikes 1 | . . . 1 Burn 1 | . . . 1 Melee Attacks . | . . . . Impact . | . . . . Slashing . | . . . . Piercing . | . . . . Sneak Attacks . | . . . . Combat Hostiles . | . . . . Follow-up Attacks . | . . . . Damage Inflicted 2143 | 65 965 126 987 Guns 1927 | 65 920 84 858 Cannons . | . . . . Explosions 216 | . 45 42 129 Melee . | . . . . Ramming . | . . . . Kinetic . | . . . . Thermal 887 | 65 611 42 169 Explosive . | . . . . Electromagnetic 1256 | . 354 84 818 Impact . | . . . . Slashing . | . . . . Piercing . | . . . . Highest Corruption 1 | . 1 1 1 Average Corruption 1 | . 1 1 1 Corruption Purged . | . . . . Corruption Blocked . | . . . . Effects 19 | . 2 3 14 Message Errors 5 | . . 1 4 Matter Fused 4 | . . 1 3 Heat Flow Errors 2 | . 1 . 1 Energy Discharges 5 | . . 1 4 Data Loss (minor) 1 | . . . 1 Data Loss (major) 2 | . 1 . 1 Overload Shots . | . . . . Overflow Damage 37 | . . . 37 Projectiles . | . . . . Explosions 37 | . . . 37 Melee . | . . . . Knockbacks . | . . . . Impact . | . . . . Kinetic . | . . . . Secondary . | . . . . Self-Inflicted Damage 74 | . . . 74 Shots 2 | . . . 2 Rammed . | . . . . Targets Rammed . | . . . . Kicked . | . . . . Crushed . | . . . . Highest Temperature 168 | 36 168 74 67 Average Temperature 42 | 16 50 38 6 Received Heat Transfer 300 | . 69 . 231 Siege Activations . | . . . . Martial Activations . | . . . . Shielding Activations . | . . . . Robots Disrupted . | . . . . Combat Hostiles . | . . . . Robots Corrupted 1 | . . . 1 Combat Hostiles . | . . . . Parts Fried 2 | . . 2 . Impact Corruptions . | . . . . Robots Melted . | . . . . Combat Hostiles . | . . . . Parts Melted 8 | 1 1 . 6 Heat Transferred 1773 | 150 1325 . 298 Parts Sabotaged . | . . . . Parts Stolen . | . . . . Parts Stripped . | . . . . Power Chain Reactions 5 | . 1 1 3 Alert | -11 -10 -10 -10 ------- Run | Yrd Mat Min Sub Maximum Alert Level . | . . . . Low Security (%) 100 | 100 100 100 . Level 1 . | . . . . Level 2 . | . . . . Level 3 . | . . . . Level 4 . | . . . . Level 5 . | . . . . High Security . | . . . . Max Security . | . . . . Peak Influence 85 | 5 85 56 . Initial 2 | . 2 . . Average 15 | 3 19 9 . Influence Increases 925 | 15 405 88 417 Destroy 0b10 Robot/C 420 | . 240 60 120 Destroy 0b10 Robot/NC 100 | 15 85 . . Destroy Leader 90 | . 70 20 . Allied During Kill 15 | . . 3 12 Successful Hack 3 | . 3 . . Destroy Structure 12 | . 7 5 . Lose Combat Pursuer 285 | . . . 285 Influence Decreases 925 | 10 410 88 417 Entered New Map 3 | . 3 . . Time Decay 872 | 10 407 88 367 Lost Part 30 | . . . 30 Lost Ally 20 | . . . 20 Squads Dispatched 3 | . 2 1 . Investigation 3 | . 2 1 . Extermination . | . . . . Reinforcement . | . . . . Assault . | . . . . Garrison . | . . . . Intercept . | . . . . Searches Triggered . | . . . . Construction Impeded . | . . . . Haulers Reinforced . | . . . . Active Scanning Responses . | . . . . Cargo Convoy Interrupts . | . . . . Stealth | -11 -10 -10 -10 --------- Run | Yrd Mat Min Sub Distress Signals 2 | . 2 . . Communications Jammed . | . . . . Distress Signals . | . . . . Times Spotted 57 | . 15 3 39 Peak Tracking Total 6 | . 3 2 6 Tactical Retreats 3 | . . . 3 Traps | -11 -10 -10 -10 ------- Run | Yrd Mat Min Sub Traps Triggered 2 | . 1 . 1 Indirectly . | . . . . Trap Hack Attempts . | . . . . Triggered . | . . . . Disarmed . | . . . . Reprogrammed . | . . . . Reused . | . . . . Traps Extracted . | . . . . Installed . | . . . . Triggered . | . . . . Machines | -11 -10 -10 -10 ---------- Run | Yrd Mat Min Sub Machines Disabled 4 | . . . 4 Max in Single Turn 1 | . . . 1 Machines Repaired . | . . . . Machines Dismantled . | . . . . Machines Sabotaged . | . . . . Overloaded Fab Kills . | . . . . Hacking | -11 -10 -10 -10 --------- Run | Yrd Mat Min Sub Machines Accessed 13 | . 10 1 2 Terminals 8 | . 8 . . Fabricators . | . . . . Repair Stations . | . . . . Recycling Units 2 | . 2 . . Scanalyzers . | . . . . Garrison Access . | . . . . Total Hacks 24 | . 17 1 6 Successful 16 | . 9 1 6 Failed 8 | . 8 . . Catastrophic . | . . . . Database Lockouts . | . . . . Manual 11 | . 11 . . Terminals 12 | . 12 . . Fabricators . | . . . . Repair Stations . | . . . . Recycling Units 5 | . 5 . . Scanalyzers . | . . . . Garrison Access . | . . . . Terminal Hacks 8 | . 1 1 6 Record 5 | . . . 5 Prototype ID Bank 1 | . 1 . . Open Door 1 | . . 1 . Proto ID Catalog 1 | . . . 1 Fabricator Hacks . | . . . . Repair Station Hacks . | . . . . Recycling Unit Hacks 1 | . 1 . . Retrieve Components 1 | . 1 . . Scanalyzer . | . . . . Garrison Access Hacks . | . . . . Unauthorized Hacks 7 | . 7 . . Terminals 7 | . 7 . . Botnet 7 | . 7 . . Fabricators . | . . . . Repair Stations . | . . . . Recycling Units . | . . . . Scanalyzers . | . . . . Garrison Access . | . . . . Data Cores Recovered . | . . . . Used . | . . . . Hacking Detections 3 | . 3 . . Full Trace Events 2 | . 2 . . Feedback Events . | . . . . Feedback Blocked . | . . . . Robot Schematics Acquired . | . . . . Robots Built . | . . . . Authchips . | . . . . Time . | . . . . Total Robot Build Rating . | . . . . Part Schematics Acquired . | . . . . Parts Built . | . . . . Authchips . | . . . . Time . | . . . . Total Part Build Rating . | . . . . Part Studies Acquired . | . . . . Parts Repaired . | . . . . Time . | . . . . Parts Recycled . | . . . . Recycled Matter . | . . . . Retrieved Matter . | . . . . Retrieved Components 3 | . 3 . . Parts Scanalyzed . | . . . . Part Schematics Acquired . | . . . . Parts Damaged . | . . . . Bothacking | -11 -10 -10 -10 ------------ Run | Yrd Mat Min Sub Used RIF Installer . | . . . . Robots Hacked . | . . . . Non-combat . | . . . . Combat . | . . . . Robot Hacks Applied . | . . . . Relay Couplers Released . | . . . . Fabnet Peak Effective % . | . . . . Robots Rewired . | . . . . Allies Hacked . | . . . . Hacks Repelled . | . . . . Allies | -11 -10 -10 -10 -------- Run | Yrd Mat Min Sub Total Allies 5 | . . 5 . Largest Group 5 | . . 5 5 Highest-Rated Group 93 | . . 89 93 Highest-Rated Ally 31 | . . 31 31 Total Orders . | . . . . Ally Attacks 93 | . . . 93 Total Damage 1197 | . . . 1197 Kills 9 | . . . 9 Allies Corrupted . | . . . . Allies Melted . | . . . . Intel | -11 -10 -10 -10 ------- Run | Yrd Mat Min Sub Active Infowar (turns) 3211 | . 731 286 2194 Sensors 643 | . . . 643 Structural 3211 | . 731 286 2194 Robot Analysis Total . | . . . . Derelict Logs Recovered 2 | . . . 2 Drone Launches . | . . . . Drone Recoveries . | . . . . Exploration | -11 -10 -10 -10 ------------- Run | Yrd Mat Min Sub Turns Passed 3368 | 73 815 286 2194 Spaces Moved 3350 | 63 1059 550 1678 Core 716 | 63 48 . 605 Treads . | . . . . Legs . | . . . . Wheels 314 | . 314 . . Hover 1003 | . . . 1003 Flight 1317 | . 697 550 70 Fastest Speed 34 | 50 37 34 37 Average Speed 79 | 82 62 36 104 Slowest Speed 150 | 100 117 37 150 Overloaded Moves . | . . . . Propulsion Burnouts . | . . . . Robots Hopped 1 | . . 1 . Potential Cave-ins . | . . . . Cave-ins Triggered . | . . . . Exploration Rate (%) 72 | 4 98 97 89 Regions Visited 3 Branch Regions 2 Pre-discovered Areas 3 | . . 1 2 Known Exits Taken 3 | 1 1 1 . Unknown Exits Taken . | . . . . Scrap Searched 2 | . . . 2 Spaces Dug . | . . . . Terrain Destroyed 21 | . 6 5 10 Melee . | . . . . Projectile . | . . . . AOE 21 | . 6 5 10 Terrain Rammed . | . . . . Walls Destroyed . | . . . . Machines Disabled . | . . . . Actions | -11 -10 -10 -10 --------- Run | Yrd Mat Min Sub Total 3877 | 76 1135 627 2039 Wait 353 | . 6 60 287 Move 3345 | 62 1058 547 1678 Hop 1 | . . 1 . Pick Up 23 | 6 11 4 2 Fast Attach 6 | . 3 2 1 Attach 13 | 4 5 . 4 Detach 1 | . 1 . . Swap 5 | . 2 2 1 Drop 17 | . 8 7 2 Fire 113 | 4 41 4 64 Melee . | . . . . Ram . | . . . . Kick . | . . . . Crush . | . . . . Escape Stasis . | . . . . Rewire . | . . . . Trap . | . . . . Miscellaneous . | . . . . Route ------- -11/Scrapyard -10/Materials (discovered 5 exits: *Mat x3 / *Min / Sub) -10/Mines (discovered 3 exits: *Mat x2 / *Sub) -10/Subcaves (discovered 4 exits: *Mat x2 / *Rec / [*Scr]) History --------- Turn | Location | Event 13 | -11/Scrapyard | Identified exit to Materials 13 | -11/Scrapyard | Discovered exit to Materials (range 16) 74 | -11/Scrapyard | Entered Materials 74 | -10/Materials | Evolved 1 slot: Propulsion x1 244 | -10/Materials | Identified exit to Materials 244 | -10/Materials | Discovered exit to Materials (range 12) 301 | -10/Materials | Build established: Hacker-Mutant 514 | -10/Materials | Discovered exit to Materials (range 6) 585 | -10/Materials | Identified exit to Mines 585 | -10/Materials | Discovered exit to Mines (range 12) 643 | -10/Materials | Discovered exit to Materials (range 16) 662 | -10/Materials | Identified exit to Subcaves 662 | -10/Materials | Discovered exit to Subcaves (range 12) 889 | -10/Materials | Entered Mines 951 | -10/Mines | Build established: Scavenger-Mutant 961 | -10/Mines | Found a damaged Exp. Sensor Array with a note attached 962 | -10/Mines | Found Prototype Device 971 | -10/Mines | Discovered exit to Materials (range 11) 975 | -10/Mines | Discovered exit to Subcaves (range 11) 987 | -10/Mines | Discovered exit to Materials (range 11) 1033 | -10/Mines | Learned location of Storage (-9) 1050 | -10/Mines | A weapon hastily lodged in a ceiling crevice suddenly fell to the ground 1055 | -10/Mines | Assisted by bots powering up and referring to "LRC-V3" 1060 | -10/Mines | Met a Derelict shopkeep closing up shop 1175 | -10/Mines | Entered Subcaves 1175 | -10/Subcaves | Accompanied by 5 allies 1176 | -10/Subcaves | Approached by a straggling Scientist 1180 | -10/Subcaves | Led the pair of lost Derelicts to an unsafe place 1341 | -10/Subcaves | Build established: Hacker-Mutant 1356 | -10/Subcaves | Identified exit to Recycling 1356 | -10/Subcaves | Discovered exit to Recycling (range 8) 1596 | -10/Subcaves | Ambushed by Subdweller buried in earth 1615 | -10/Subcaves | Identified exit to Materials 1615 | -10/Subcaves | Discovered exit to Materials (range 15) 1641 | -10/Subcaves | Core integrity fell below 50% 1945 | -10/Subcaves | Visited Clippyterm 1948 | -10/Subcaves | Learned Factory trap positions 2031 | -10/Subcaves | Core integrity fell below 20% 2092 | -10/Subcaves | Learned location of Zion (-6) 2092 | -10/Subcaves | Met a Zionite searching for "candidates" 2115 | -10/Subcaves | Scientist uncovered a shortcut to Scraptown 2240 | -10/Subcaves | A swath of the cavern ceiling suddenly collapsed 2301 | -10/Subcaves | Shifting Twisted Machinery released Spk. Treads 2308 | -10/Subcaves | Discovered exit to Materials (range 5) 2398 | -10/Subcaves | Visited 4L-MR0's lab 2415 | -10/Subcaves | Found Meta Core 2417 | -10/Subcaves | Attached Meta Core, gained temporary slots: Propulsion, Utility, Weapon 2803 | -10/Subcaves | Learned Materials emergency access door positions 2807 | -10/Subcaves | Learned location of Mines (-10) 3369 | -10/Subcaves | Destroyed self with Subdweller Power Source chain reaction Last Messages --------------- 02924_ System corrupted: Energy discharge (-59). 02963_ System corrupted: Matter fused (-9). 03024_ Acquired 9 matter. 03093_ Subatomizers dissect the Mining Laser. 03188_ =AWWI=VWBXM IN GC3/LLR>,GHB